fUSD/lending_fUSD_20241129
["ID","MTS","AMOUNT","RATE_DAILY","PERIOD"]
[343680401,1732847456494,-500.0,9.999e-05,2]
[343680402,1732847456505,-500.0,9.999e-05,2]
[343680403,1732847456515,-500.0,9.999e-05,2]
[343680404,1732847456525,-500.0,9.999e-05,2]
[343680405,1732847456535,-500.0,9.999e-05,2]
[343680406,1732847456545,-500.0,9.999e-05,2]
[343680407,1732847456555,-500.0,9.999e-05,2]
[343680408,1732847456564,-500.0,9.999e-05,2]
[343680409,1732847456574,-178.41639751,9.999e-05,2]
[343680410,1732847456583,-3519.15,9.999e-05,2]
[343680411,1732847456592,-3519.15,9.999e-05,2]
[343680412,1732847456602,-3519.15,9.999e-05,2]
[343680413,1732847456610,-3519.15,9.999e-05,2]
[343680414,1732847456619,-3519.15,9.999e-05,2]
[343680415,1732847456629,-3519.15,9.999e-05,2]
[343680416,1732847456638,-3519.15,9.999e-05,2]
[343680417,1732847456648,-3519.15,9.999e-05,2]
[343680418,1732847456658,-3519.15,9.999e-05,2]
[343680419,1732847456668,-3519.15,9.999e-05,2]
[343680420,1732847456678,-3519.15,9.999e-05,2]
[343680421,1732847456687,-3519.15,9.999e-05,2]
[343680422,1732847456696,-3519.15,9.999e-05,2]
[343680423,1732847456707,-3519.2631,9.999e-05,2]
[343680424,1732847456717,-1488.75,9.999e-05,2]
[343680425,1732847456727,-1488.75,9.999e-05,2]
[343680426,1732847456737,-1488.75,9.999e-05,2]
[343680427,1732847456747,-2403.68,9.999e-05,2]
[343680428,1732847456756,-1488.75,9.999e-05,2]
[343680429,1732847456766,-2403.68,9.999e-05,2]
[343680430,1732847456776,-1488.75,9.999e-05,2]
[343680431,1732847456786,-2403.68,9.999e-05,2]
[343680432,1732847456799,-1488.75,9.999e-05,2]
[343680433,1732847456809,-2403.68,9.999e-05,2]
[343680434,1732847456819,-1488.75,9.999e-05,2]
[343680435,1732847456829,-2403.68,9.999e-05,2]
[343680436,1732847456839,-2403.68,9.999e-05,2]
[343680437,1732847456848,-1488.75,9.999e-05,2]
[343680438,1732847456859,-1488.75,9.999e-05,2]
[343680439,1732847456869,-2403.68,9.999e-05,2]
[343680440,1732847456880,-2403.68,9.999e-05,2]
[343680441,1732847456890,-1488.75,9.999e-05,2]
[343680442,1732847456902,-2403.68,9.999e-05,2]
[343680443,1732847456911,-1488.75,9.999e-05,2]
[343680444,1732847456921,-2403.68,9.999e-05,2]
[343680445,1732847456931,-1488.75,9.999e-05,2]
[343680446,1732847456940,-2403.68,9.999e-05,2]
[343680447,1732847456950,-1488.75,9.999e-05,2]
[343680448,1732847456960,-2403.68,9.999e-05,2]
[343680449,1732847456970,-1488.75,9.999e-05,2]
[343680450,1732847456979,-2403.68,9.999e-05,2]
[343680451,1732847456991,-1488.75,9.999e-05,2]
[343680452,1732847457000,-2403.88654651,9.999e-05,2]
[343680453,1732847457009,-1488.81275071,9.999e-05,2]
[343680454,1732847457019,-500.0,9.999e-05,2]
[343680455,1732847457028,-500.0,9.999e-05,2]
[343680456,1732847457038,-500.0,9.999e-05,2]
[343680457,1732847457049,-385.52323506,9.999e-05,2]
[343680458,1732847457059,-500.0,9.999e-05,2]
[343680459,1732847457068,-500.0,9.999e-05,2]
[343680460,1732847457077,-500.0,9.999e-05,2]
[343680461,1732847457087,-500.0,9.999e-05,2]
[343680462,1732847457097,-500.0,9.999e-05,2]
[343680463,1732847457106,-500.0,9.999e-05,2]
[343680464,1732847457115,-500.0,9.999e-05,2]
[343680465,1732847457124,-500.0,9.999e-05,2]
[343680466,1732847457134,-500.0,9.999e-05,2]
[343680467,1732847457144,-500.0,9.999e-05,2]
[343680468,1732847457155,-500.0,9.999e-05,2]
[343680469,1732847457164,-500.0,9.999e-05,2]
[343680470,1732847457176,-500.0,9.999e-05,2]
[343680471,1732847457185,-500.0,9.999e-05,2]
[343680472,1732847457195,-449.73901337,9.999e-05,2]
[343680473,1732847457204,-500.0,9.999e-05,2]
[343680474,1732847457214,-500.0,9.999e-05,2]
[343680475,1732847457224,-500.0,9.999e-05,2]
[343680476,1732847457234,-500.0,9.999e-05,2]
[343680477,1732847457243,-500.0,9.999e-05,2]
[343680478,1732847457252,-2175.05,9.999e-05,2]
[343680479,1732847457261,-291.32052897,9.999e-05,2]
[343680480,1732847457270,-2175.05,9.999e-05,2]
[343680481,1732847457279,-2175.05,9.999e-05,2]
[343680482,1732847457289,-2175.05,9.999e-05,2]
[343680483,1732847457300,-2175.05,9.999e-05,2]
[343680484,1732847457309,-188.81182934,0.0001,2]
[343680485,1732847457319,-1047869.29312394,0.0001,2]
[343680486,1732847457559,-37546.73653246,0.0001,2]
[343680487,1732847457570,-40441.0714529,0.0001,2]
[343680488,1732847457582,-534.4333347,0.0001,2]
[343680489,1732847457836,-522.81,9.996e-05,2]
[343680490,1732847457846,-217.73,9.996e-05,2]
[343680491,1732847457912,-282.27,9.996e-05,2]
[343680492,1732847457922,-500.0,9.997e-05,2]
[343680493,1732847457931,-522.81,9.997e-05,2]
[343680494,1732847457941,-500.0,9.997e-05,2]
[343680495,1732847457950,-538.88884725,9.997e-05,2]
[343680496,1732847457959,-553.18,9.998e-05,2]
[343680497,1732847457968,-553.18,9.998e-05,2]
[343680498,1732847457977,-553.18,9.998e-05,2]
[343680499,1732847457987,-482.61315036,9.998e-05,2]
[343680500,1732847457998,-70.56684964,9.998e-05,2]
[343680501,1732847458007,-522.81,9.998e-05,2]
[343680502,1732847458016,-124.92853691,9.999e-05,2]
[343680503,1732847458028,-690.26898186,9.999e-05,2]
[343680504,1732847458530,-13696.0,9.508e-05,2]
[343680505,1732847458543,-500.0,9.997e-05,2]
[343680506,1732847458552,-500.0,9.997e-05,2]
[343680507,1732847458562,-500.0,9.997e-05,2]
[343680508,1732847458572,-522.81,9.998e-05,2]
[343680509,1732847458582,-170.69600788,9.998e-05,2]
[343680510,1732847458593,-522.81,9.998e-05,2]
[343680511,1732847458603,-500.0,9.998e-05,2]
[343680512,1732847458612,-57.22741414,9.998e-05,2]
[343680513,1732847458624,-465.58258586,9.998e-05,2]
[343680514,1732847458633,-500.0,9.998e-05,2]
[343680515,1732847458643,-288.80205897,9.998e-05,2]
[343680516,1732847458702,-234.00794103,9.998e-05,2]
[343680517,1732847458711,-522.81,9.998e-05,2]
[343680518,1732847458722,-1359.85248123,9.999e-05,2]
[343680519,1732847458734,-2175.05,9.999e-05,2]
[343680520,1732847458746,-2175.05,9.999e-05,2]
[343680521,1732847458756,-1638.1346836,9.999e-05,2]
[343680522,1732847458768,-536.9153164,9.999e-05,2]
[343680523,1732847458778,-2175.05,9.999e-05,2]
[343680524,1732847458789,-553.18,9.999e-05,2]
[343680525,1732847458799,-2175.05,9.999e-05,2]
[343680526,1732847458809,-2175.05,9.999e-05,2]
[343680527,1732847458819,-553.18,9.999e-05,2]
[343680528,1732847458829,-553.18,9.999e-05,2]
[343680529,1732847458838,-2175.05,9.999e-05,2]
[343680530,1732847458849,-2175.05,9.999e-05,2]
[343680531,1732847458859,-553.18,9.999e-05,2]
[343680532,1732847458869,-2175.27,9.999e-05,2]
[343680533,1732847458879,-553.18,9.999e-05,2]
[343680534,1732847458890,-553.18,9.999e-05,2]
[343680535,1732847458900,-553.18,9.999e-05,2]
[343680536,1732847458909,-553.18,9.999e-05,2]
[343680537,1732847458919,-500.0,9.999e-05,2]
[343680538,1732847458928,-553.18,9.999e-05,2]
[343680539,1732847458938,-500.0,9.999e-05,2]
[343680540,1732847458948,-522.81,9.999e-05,2]
[343680541,1732847458957,-553.18,9.999e-05,2]
[343680542,1732847458967,-500.0,9.999e-05,2]
[343680543,1732847458977,-522.81,9.999e-05,2]
[343680544,1732847458989,-553.18,9.999e-05,2]
[343680545,1732847458998,-522.81,9.999e-05,2]
[343680546,1732847459007,-500.0,9.999e-05,2]
[343680547,1732847459017,-553.18,9.999e-05,2]
[343680548,1732847459027,-522.81,9.999e-05,2]
[343680549,1732847459039,-500.0,9.999e-05,2]
[343680550,1732847459048,-553.18,9.999e-05,2]
[343680551,1732847459058,-26802.34366611,0.0001,2]
[343680552,1732847459067,-1186.32961186,0.0001,2]
[343680553,1732847459077,-5832.19878035,0.0001,2]
[343680554,1732847459086,-5832.1987803,0.0001,2]
[343680555,1732847459095,-5832.1987803,0.0001,2]
[343680556,1732847459283,-5832.1987803,0.0001,2]
[343680557,1732847459293,-5832.1987803,0.0001,2]
[343680558,1732847459302,-5832.1987803,0.0001,2]
[343680559,1732847459312,-108024.11670516,0.0001,2]
[343680560,1732847459323,-5346.0,0.0001,2]
[343680561,1732847459332,-42448.5398803,0.0001,2]
[343680562,1732847459345,-1398489.16012722,0.0001,2]
[343680563,1732847459391,-500.0,9.999e-05,2]
[343680564,1732847459403,-522.81,9.999e-05,2]
[343680565,1732847459412,-553.20829599,9.999e-05,2]
[343680566,1732847459421,-281.97170281,0.0001,2]
[343680567,1732847459432,-8280.29415686,0.0001,2]
[343680568,1732847459443,-12825.27477746,0.0001,2]
[343680569,1732847459455,-1128.66166438,0.0001,2]
[343680570,1732847459469,-2142.40266254,0.0001,2]
[343680571,1732847459481,-1665.17533271,0.0001,2]
[343680572,1732847459495,-3216.42142526,0.0001,2]
[343680573,1732847462474,-28.00006622,9.999e-05,2]
[343680574,1732847462491,-471.99993378,9.999e-05,2]
[343680575,1732847462499,-522.81,9.999e-05,2]
[343680576,1732847462510,-500.0,9.999e-05,2]
[343680577,1732847462519,-522.81,9.999e-05,2]
[343680578,1732847462529,-500.0,9.999e-05,2]
[343680579,1732847462540,-500.0,9.999e-05,2]
[343680580,1732847462551,-522.81,9.999e-05,2]
[343680581,1732847462562,-500.0,9.999e-05,2]
[343680582,1732847462572,-500.0,9.999e-05,2]
[343680583,1732847462581,-522.81,9.999e-05,2]
[343680584,1732847462590,-500.0,9.999e-05,2]
[343680585,1732847462601,-522.81,9.999e-05,2]
[343680586,1732847462613,-500.0,9.999e-05,2]
[343680587,1732847462626,-522.81,9.999e-05,2]
[343680588,1732847462635,-522.81,9.999e-05,2]
[343680589,1732847462645,-500.0,9.999e-05,2]
[343680590,1732847462655,-4874.13003126,0.0001,2]
[343680597,1732847845344,4346.245,0.00027,90]
[343680599,1732848236246,-1042.52,8.219e-05,2]
[343680600,1732848236270,-250.0,8.844e-05,2]
[343680601,1732848236293,-1001.04,8.882e-05,2]
[343680602,1732848236316,-284.68,8.891e-05,2]
[343680603,1732848236339,-2549.48,8.949e-05,2]
[343680604,1732848236362,-2202.66595589,8.966e-05,2]
[343680605,1732848236386,-1000.0,8.966e-05,2]
[343680606,1732848236412,-168.96,9.198e-05,2]
[343680607,1732848236434,-541.105798,9.433e-05,2]
[343680608,1732848236456,-2202.66595589,9.481e-05,2]
[343680609,1732848236479,-150.0,9.558e-05,2]
[343680610,1732848236500,-4187.483,9.558e-05,2]
[343680611,1732848236522,-4946.194,9.558e-05,2]
[343680612,1732848236544,-967.104,9.558e-05,2]
[343680613,1732848236567,-400.0,9.589e-05,2]
[343680614,1732848236589,-1671.35,9.589e-05,2]
[343680615,1732848236611,-509.43,9.598e-05,2]
[343680616,1732848236633,-1671.35,9.726e-05,2]
[343680617,1732848236657,-150.52547463,9.729e-05,2]
[343680618,1732848236681,-150.0,9.78e-05,2]
[343680619,1732848236710,-157.4453192,9.82e-05,2]
[343680620,1732848236731,-150.0,9.821e-05,2]
[343680621,1732848236754,-150.0,9.826e-05,2]
[343680622,1732848236776,-1500.0,9.859e-05,2]
[343680623,1732848237041,-1671.35,9.863e-05,2]
[343680624,1732848237064,-490.51,9.883e-05,2]
[343680625,1732848237086,-3893.8889,9.896e-05,2]
[343680626,1732848237108,-2500.0,9.897e-05,2]
[343680627,1732848237131,-5637.4685222,9.9e-05,2]
[343680628,1732848237152,-500.24,9.901e-05,2]
[343680629,1732848237175,-150.0,9.912e-05,2]
[343680630,1732848237200,-150.0,9.954e-05,2]
[343680631,1732848237224,-1429.456,9.954e-05,2]
[343680632,1732848237246,-173.82125918,9.956e-05,2]
[343680633,1732848237268,-159.83968,9.973e-05,2]
[343680634,1732848237289,-200.0,9.974e-05,2]
[343680635,1732848237311,-200.0,9.981e-05,2]
[343680636,1732848237332,-200.0,9.982e-05,2]
[343680637,1732848237355,-503.82607784,9.996e-05,2]
[343680638,1732848237376,-500.0,9.996e-05,2]
[343680639,1732848237398,-514.81125051,9.996e-05,2]
[343680640,1732848237422,-500.0,9.996e-05,2]
[343680641,1732848237445,-500.0,9.996e-05,2]
[343680642,1732848237466,-500.0,9.996e-05,2]
[343680643,1732848237487,-499.46949259,9.996e-05,2]
[343680644,1732848237509,-500.0,9.996e-05,2]
[343680645,1732848237531,-500.0,9.996e-05,2]
[343680646,1732848237555,-166.34406657,9.996e-05,2]
[343680647,1732848237580,-500.0,9.996e-05,2]
[343680648,1732848237602,-500.0,9.996e-05,2]
[343680649,1732848237625,-500.0,9.996e-05,2]
[343680650,1732848237647,-500.0,9.996e-05,2]
[343680651,1732848237671,-521.17844668,9.996e-05,2]
[343680652,1732848237697,-500.0,9.996e-05,2]
[343680653,1732848237724,-552.90279518,9.996e-05,2]
[343680654,1732848237747,-500.0,9.996e-05,2]
[343680655,1732848237772,-217.52927292,9.996e-05,2]
[343680656,1732848237796,-500.0,9.996e-05,2]
[343680657,1732848237819,-510.48653366,9.996e-05,2]
[343680658,1732848237844,-508.90737513,9.996e-05,2]
[343680659,1732848237866,-500.0,9.996e-05,2]
[343680660,1732848237889,-500.0,9.996e-05,2]
[343680661,1732848237912,-500.0,9.996e-05,2]
[343680662,1732848237935,-500.0,9.996e-05,2]
[343680663,1732848237959,-500.0,9.996e-05,2]
[343680664,1732848237981,-503.09447124,9.996e-05,2]
[343680665,1732848238004,-500.0,9.996e-05,2]
[343680666,1732848238026,-503.68727557,9.996e-05,2]
[343680667,1732848238049,-1421.49,9.996e-05,2]
[343680668,1732848238072,-1421.49,9.996e-05,2]
[343680669,1732848238095,-500.0,9.996e-05,2]
[343680670,1732848238117,-500.0,9.996e-05,2]
[343680671,1732848238139,-507.07999055,9.996e-05,2]
[343680672,1732848238162,-504.3040837,9.996e-05,2]
[343680673,1732848238184,-508.76531439,9.996e-05,2]
[343680674,1732848238207,-503.45610569,9.996e-05,2]
[343680675,1732848238229,-541.5,9.996e-05,2]
[343680676,1732848238252,-541.5,9.996e-05,2]
[343680677,1732848238279,-500.0,9.996e-05,2]
[343680678,1732848238304,-500.0,9.996e-05,2]
[343680679,1732848238328,-500.0,9.996e-05,2]
[343680680,1732848238353,-503.52912316,9.996e-05,2]
[343680681,1732848238376,-500.0,9.996e-05,2]
[343680682,1732848238403,-500.23592521,9.996e-05,2]
[343680683,1732848238429,-500.0,9.996e-05,2]
[343680684,1732848238451,-501.01728377,9.996e-05,2]
[343680685,1732848238474,-4146.4,9.996e-05,2]
[343680686,1732848238496,-4146.4,9.996e-05,2]
[343680687,1732848238519,-502.41846807,9.996e-05,2]
[343680688,1732848238543,-500.0,9.996e-05,2]
[343680689,1732848238565,-495.06970317,9.996e-05,2]
[343680690,1732848238588,-503.79398083,9.996e-05,2]
[343680691,1732848238610,-1522.59,9.996e-05,2]
[343680692,1732848238633,-500.0,9.996e-05,2]
[343680693,1732848238656,-500.0,9.996e-05,2]
[343680694,1732848238679,-501.40537972,9.996e-05,2]
[343680695,1732848238704,-501.48453754,9.996e-05,2]
[343680696,1732848238726,-509.75321626,9.996e-05,2]
[343680697,1732848238750,-498.26576533,9.996e-05,2]
[343680698,1732848238775,-501.34820434,9.996e-05,2]
[343680699,1732848238799,-503.86664051,9.996e-05,2]
[343680700,1732848238822,-511.64101569,9.996e-05,2]
[343680701,1732848238845,-507.62722412,9.996e-05,2]
[343680702,1732848238868,-500.0,9.996e-05,2]
[343680703,1732848238889,-507.82551221,9.996e-05,2]
[343680704,1732848238913,-503.58213615,9.996e-05,2]
[343680705,1732848238939,-503.61494837,9.996e-05,2]
[343680706,1732848238961,-501.35917563,9.996e-05,2]
[343680707,1732848238983,-503.60970916,9.996e-05,2]
[343680708,1732848239007,-500.0,9.996e-05,2]
[343680709,1732848239029,-502.75721395,9.996e-05,2]
[343680710,1732848239053,-500.0,9.996e-05,2]
[343680711,1732848239076,-500.0,9.996e-05,2]
[343680712,1732848239099,-805.97,9.996e-05,2]
[343680713,1732848239121,-506.23560356,9.996e-05,2]
[343680714,1732848239144,-500.0,9.996e-05,2]
[343680715,1732848239168,-502.21741295,9.996e-05,2]
[343680716,1732848239191,-502.1656177,9.996e-05,2]
[343680717,1732848239214,-507.10538829,9.996e-05,2]
[343680718,1732848239236,-502.27038099,9.996e-05,2]
[343680719,1732848239259,-506.19872387,9.996e-05,2]
[343680720,1732848239280,-500.75964245,9.996e-05,2]
[343680721,1732848239302,-506.19181408,9.996e-05,2]
[343680722,1732848239324,-500.0,9.996e-05,2]
[343680723,1732848239347,-500.0,9.996e-05,2]
[343680724,1732848239369,-500.0,9.996e-05,2]
[343680725,1732848239391,-500.0,9.996e-05,2]
[343680726,1732848239415,-500.0,9.996e-05,2]
[343680727,1732848239439,-1329.64,9.996e-05,2]
[343680728,1732848239463,-500.0,9.996e-05,2]
[343680729,1732848239484,-500.0,9.996e-05,2]
[343680730,1732848239506,-500.0,9.996e-05,2]
[343680731,1732848239530,-500.0,9.996e-05,2]
[343680732,1732848239554,-296.48706461,9.996e-05,2]
[343680733,1732848239576,-500.0,9.996e-05,2]
[343680734,1732848239597,-500.0,9.996e-05,2]
[343680735,1732848239619,-503.92670733,9.996e-05,2]
[343680736,1732848239641,-500.0,9.996e-05,2]
[343680737,1732848239663,-500.0,9.996e-05,2]
[343680738,1732848239684,-498.24401081,9.996e-05,2]
[343680739,1732848239708,-514.10337504,9.996e-05,2]
[343680740,1732848239730,-501.75942297,9.996e-05,2]
[343680741,1732848239752,-503.25757269,9.996e-05,2]
[343680742,1732848239777,-500.0,9.996e-05,2]
[343680743,1732848239799,-282.9449141,9.996e-05,2]
[343680744,1732848239822,-500.0,9.996e-05,2]
[343680745,1732848239847,-502.69350797,9.996e-05,2]
[343680746,1732848239870,-500.0,9.996e-05,2]
[343680747,1732848239892,-503.21742832,9.996e-05,2]
[343680748,1732848239914,-501.84254607,9.996e-05,2]
[343680749,1732848239936,-500.0,9.996e-05,2]
[343680750,1732848239958,-502.80066787,9.996e-05,2]
[343680751,1732848239981,-500.0,9.996e-05,2]
[343680752,1732848240004,-516.04635124,9.996e-05,2]
[343680753,1732848240029,-500.0,9.996e-05,2]
[343680754,1732848240052,-509.42471078,9.996e-05,2]
[343680755,1732848240075,-509.01836031,9.996e-05,2]
[343680756,1732848240098,-500.0,9.996e-05,2]
[343680757,1732848240122,-506.44574187,9.996e-05,2]
[343680758,1732848240146,-500.0,9.996e-05,2]
[343680759,1732848240170,-647.23,9.996e-05,2]
[343680760,1732848240193,-500.0,9.996e-05,2]
[343680761,1732848240216,-504.76535992,9.996e-05,2]
[343680762,1732848240240,-568.74,9.996e-05,2]
[343680763,1732848240264,-500.0,9.996e-05,2]
[343680764,1732848240286,-502.82099267,9.996e-05,2]
[343680765,1732848240308,-503.86384342,9.996e-05,2]
[343680766,1732848240331,-503.06925842,9.996e-05,2]
[343680767,1732848240353,-250.06283294,9.996e-05,2]
[343680768,1732848240380,-150.0,9.996e-05,2]
[343680769,1732848240402,-500.0,9.996e-05,2]
[343680770,1732848240426,-510.20459392,9.996e-05,2]
[343680771,1732848240450,-500.0,9.996e-05,2]
[343680772,1732848240473,-500.0,9.996e-05,2]
[343680773,1732848240495,-501.48685706,9.996e-05,2]
[343680774,1732848240516,-165.37485083,9.996e-05,2]
[343680775,1732848240539,-502.24060911,9.996e-05,2]
[343680776,1732848240561,-508.74072788,9.996e-05,2]
[343680777,1732848240582,-503.25279524,9.996e-05,2]
[343680778,1732848240604,-500.0,9.996e-05,2]
[343680779,1732848240625,-500.0,9.996e-05,2]
[343680780,1732848240647,-505.97026967,9.996e-05,2]
[343680781,1732848240670,-509.19179649,9.996e-05,2]
[343680782,1732848240693,-501.34243533,9.996e-05,2]
[343680783,1732848240722,-1083.41,9.996e-05,2]
[343680784,1732848240745,-1083.41,9.996e-05,2]
[343680785,1732848240766,-604.94783108,9.996e-05,2]
[343680786,1732848240788,-504.30351062,9.996e-05,2]
[343680787,1732848240809,-500.0,9.996e-05,2]
[343680788,1732848240831,-500.0,9.996e-05,2]
[343680789,1732848240853,-500.0,9.996e-05,2]
[343680790,1732848240875,-500.0,9.996e-05,2]
[343680791,1732848240897,-505.03524012,9.996e-05,2]
[343680792,1732848240921,-601.38,9.996e-05,2]
[343680793,1732848240948,-601.38,9.996e-05,2]
[343680794,1732848240971,-507.21715212,9.996e-05,2]
[343680795,1732848240992,-298.16685002,9.996e-05,2]
[343680796,1732848241014,-511.34215083,9.996e-05,2]
[343680797,1732848241037,-880.36,9.996e-05,2]
[343680798,1732848241058,-880.36,9.996e-05,2]
[343680799,1732848241081,-500.0,9.996e-05,2]
[343680800,1732848241102,-621.24,9.996e-05,2]
[343680801,1732848241124,-500.0,9.996e-05,2]
[343680802,1732848241336,-508.63665268,9.996e-05,2]
[343680803,1732848241360,-902.27,9.996e-05,2]
[343680804,1732848241382,-902.27,9.996e-05,2]
[343680805,1732848241404,-502.84001833,9.996e-05,2]
[343680806,1732848241426,-500.0,9.996e-05,2]
[343680807,1732848241449,-500.0,9.996e-05,2]
[343680808,1732848241473,-502.00051907,9.996e-05,2]
[343680809,1732848241495,-969.18,9.996e-05,2]
[343680810,1732848241517,-969.18,9.996e-05,2]
[343680811,1732848241540,-537.50335126,9.996e-05,2]
[343680812,1732848241563,-500.0,9.996e-05,2]
[343680813,1732848241585,-500.0,9.996e-05,2]
[343680814,1732848241608,-500.0,9.996e-05,2]
[343680815,1732848241630,-500.0,9.996e-05,2]
[343680816,1732848241652,-519.92384518,9.996e-05,2]
[343680817,1732848241675,-500.0,9.996e-05,2]
[343680818,1732848241700,-264.67752042,9.996e-05,2]
[343680819,1732848241722,-500.0,9.996e-05,2]
[343680820,1732848241746,-370.54794058,9.996e-05,2]
[343680821,1732848241769,-500.0,9.996e-05,2]
[343680822,1732848241793,-500.0,9.996e-05,2]
[343680823,1732848241816,-500.0,9.996e-05,2]
[343680824,1732848241839,-681.07,9.996e-05,2]
[343680825,1732848241864,-681.07,9.996e-05,2]
[343680826,1732848241887,-490.99912468,9.996e-05,2]
[343680827,1732848241912,-500.0,9.996e-05,2]
[343680828,1732848241933,-294.66,9.996e-05,2]
[343680829,1732848241957,-500.0,9.996e-05,2]
[343680830,1732848241980,-500.0,9.996e-05,2]
[343680831,1732848242003,-517.70808071,9.996e-05,2]
[343680832,1732848242026,-519.83518644,9.996e-05,2]
[343680833,1732848242048,-535.10467887,9.996e-05,2]
[343680834,1732848242071,-4021.12,9.996e-05,2]
[343680835,1732848242094,-4021.12,9.996e-05,2]
[343680836,1732848242117,-500.0,9.996e-05,2]
[343680837,1732848242141,-500.0,9.996e-05,2]
[343680838,1732848242165,-500.0,9.996e-05,2]
[343680839,1732848242188,-500.0,9.996e-05,2]
[343680840,1732848242213,-500.0,9.996e-05,2]
[343680841,1732848242236,-500.0,9.996e-05,2]
[343680842,1732848242259,-520.55395373,9.996e-05,2]
[343680843,1732848242281,-517.29857334,9.996e-05,2]
[343680844,1732848242302,-500.0,9.996e-05,2]
[343680845,1732848242323,-500.0,9.996e-05,2]
[343680846,1732848242346,-500.0,9.996e-05,2]
[343680847,1732848242367,-500.0,9.996e-05,2]
[343680848,1732848242388,-302.66841849,9.996e-05,2]
[343680849,1732848242410,-500.0,9.996e-05,2]
[343680850,1732848242432,-500.0,9.996e-05,2]
[343680851,1732848242456,-500.0,9.996e-05,2]
[343680852,1732848242480,-395.10970616,9.996e-05,2]
[343680853,1732848242503,-500.0,9.996e-05,2]
[343680854,1732848242526,-539.73285208,9.996e-05,2]
[343680855,1732848242550,-500.0,9.996e-05,2]
[343680856,1732848242572,-502.84827156,9.996e-05,2]
[343680857,1732848242594,-500.0,9.996e-05,2]
[343680858,1732848242617,-500.0,9.996e-05,2]
[343680859,1732848242645,-501.39974709,9.996e-05,2]
[343680860,1732848242670,-500.0,9.996e-05,2]
[343680861,1732848242692,-505.15966327,9.996e-05,2]
[343680862,1732848242717,-500.0,9.996e-05,2]
[343680863,1732848242745,-500.0,9.996e-05,2]
[343680864,1732848242769,-412.38051045,9.996e-05,2]
[343680865,1732848242793,-500.0,9.996e-05,2]
[343680866,1732848242815,-500.0,9.996e-05,2]
[343680867,1732848242837,-500.0,9.996e-05,2]
[343680868,1732848242861,-2202.66595589,9.996e-05,2]
[343680869,1732848242884,-501.48979573,9.996e-05,2]
[343680870,1732848242909,-553.63383896,9.996e-05,2]
[343680871,1732848242932,-501.9073579,9.996e-05,2]
[343680872,1732848242955,-500.0,9.996e-05,2]
[343680873,1732848242980,-500.0,9.996e-05,2]
[343680874,1732848243003,-533.51257776,9.996e-05,2]
[343680875,1732848243038,-500.0,9.996e-05,2]
[343680876,1732848243063,-500.0,9.996e-05,2]
[343680877,1732848243095,-500.0,9.996e-05,2]
[343680878,1732848243120,-523.84549824,9.996e-05,2]
[343680879,1732848243145,-500.0,9.996e-05,2]
[343680880,1732848243172,-500.0,9.996e-05,2]
[343680881,1732848243196,-500.0,9.996e-05,2]
[343680882,1732848243221,-500.0,9.996e-05,2]
[343680883,1732848243244,-4146.57,9.996e-05,2]
[343680884,1732848243270,-582.04208644,9.996e-05,2]
[343680885,1732848243293,-500.0,9.996e-05,2]
[343680886,1732848243317,-4146.57,9.996e-05,2]
[343680887,1732848243341,-508.63581442,9.996e-05,2]
[343680888,1732848243364,-579.44,9.996e-05,2]
[343680889,1732848243392,-579.44,9.996e-05,2]
[343680890,1732848243416,-573.14379741,9.996e-05,2]
[343680891,1732848243440,-502.6787201,9.996e-05,2]
[343680892,1732848243463,-506.63958894,9.996e-05,2]
[343680893,1732848243486,-500.0,9.996e-05,2]
[343680894,1732848243509,-500.0,9.996e-05,2]
[343680895,1732848243534,-7806.29,9.996e-05,2]
[343680896,1732848243557,-7806.29,9.996e-05,2]
[343680897,1732848243580,-500.0,9.996e-05,2]
[343680898,1732848243604,-500.0,9.996e-05,2]
[343680899,1732848243626,-500.0,9.996e-05,2]
[343680900,1732848243648,-501.87935614,9.996e-05,2]
[343680901,1732848243673,-500.0,9.996e-05,2]
[343680902,1732848243698,-500.0,9.996e-05,2]
[343680903,1732848243722,-228.69693403,9.996e-05,2]
[343680904,1732848243745,-500.0,9.996e-05,2]
[343680905,1732848243769,-500.0,9.996e-05,2]
[343680906,1732848243793,-501.94669531,9.996e-05,2]
[343680907,1732848243817,-500.0,9.996e-05,2]